fUSD/lending_fUSD_20260121
["ID","MTS","AMOUNT","RATE_DAILY","PERIOD"]
[402943157,1769003433081,-250.0,0.00017537,2]
[402943158,1769003433091,-250.0,0.00017537,2]
[402943159,1769003433100,-250.0,0.00017537,2]
[402943160,1769003433110,-250.0,0.00017537,2]
[402943161,1769003433119,-250.0,0.00017537,2]
[402943162,1769003433129,-322.6107,0.00017537,2]
[402943163,1769003433138,-250.0,0.00017537,2]
[402943164,1769003433147,-250.0,0.00017537,2]
[402943165,1769003433157,-500.0,0.00017537,2]
[402943166,1769003433166,-250.0,0.00017537,2]
[402943167,1769003433176,-500.0,0.00017537,2]
[402943168,1769003433185,-263.31471796,0.00017537,2]
[402943169,1769003433194,-500.0,0.00017537,2]
[402943170,1769003433204,-500.0,0.00017537,2]
[402943171,1769003433213,-2000.0,0.00017537,2]
[402943172,1769003433223,-250.0,0.00017537,2]
[402943173,1769003433232,-500.0,0.00017537,2]
[402943174,1769003433242,-2000.0,0.00017537,2]
[402943175,1769003433252,-500.0,0.00017537,2]
[402943176,1769003433262,-250.0,0.00017537,2]
[402943177,1769003433271,-954.09835249,0.00017537,2]
[402943178,1769003433281,-500.0,0.00017537,2]
[402943179,1769003433290,-250.0,0.00017537,2]
[402943180,1769003433299,-500.0,0.00017537,2]
[402943181,1769003433309,-250.0,0.00017537,2]
[402943182,1769003433318,-500.0,0.00017537,2]
[402943183,1769003433327,-250.0,0.00017537,2]
[402943184,1769003433336,-500.0,0.00017537,2]
[402943185,1769003433346,-250.0,0.00017537,2]
[402943186,1769003433356,-500.0,0.00017537,2]
[402943187,1769003433365,-250.0,0.00017537,2]
[402943188,1769003433374,-250.0,0.00017537,2]
[402943189,1769003433383,-250.0,0.00017537,2]
[402943190,1769003433392,-250.0,0.00017537,2]
[402943191,1769003433402,-250.0,0.00017537,2]
[402943192,1769003433411,-250.0,0.00017537,2]
[402943193,1769003433420,-151.0,0.00017537,2]
[402943194,1769003433429,-250.0,0.00017537,2]
[402943195,1769003433439,-303.07673906,0.00017537,2]
[402943196,1769003433448,-250.0,0.00017537,2]
[402943197,1769003433457,-500.0,0.00017537,2]
[402943198,1769003433467,-250.0,0.00017537,2]
[402943199,1769003433476,-500.0,0.00017537,2]
[402943200,1769003433486,-250.0,0.00017537,2]
[402943201,1769003433495,-500.0,0.00017537,2]
[402943202,1769003433505,-250.0,0.00017537,2]
[402943203,1769003433514,-500.0,0.00017537,2]
[402943204,1769003433523,-250.0,0.00017537,2]
[402943205,1769003433532,-500.0,0.00017537,2]
[402943206,1769003433541,-250.0,0.00017537,2]
[402943207,1769003433551,-500.0,0.00017537,2]
[402943208,1769003433561,-250.0,0.00017537,2]
[402943209,1769003433569,-500.0,0.00017537,2]
[402943210,1769003433579,-250.0,0.00017537,2]
[402943211,1769003433589,-500.0,0.00017537,2]
[402943212,1769003433599,-250.0,0.00017537,2]
[402943213,1769003433609,-500.0,0.00017537,2]
[402943214,1769003433618,-515.99657842,0.00017537,2]
[402943215,1769003433627,-250.0,0.00017537,2]
[402943216,1769003433636,-250.0,0.00017537,2]
[402943217,1769003433645,-250.0,0.00017537,2]
[402943218,1769003433654,-250.0,0.00017537,2]
[402943219,1769003433663,-151.0,0.00017537,2]
[402943220,1769003433672,-151.0,0.00017537,2]
[402943221,1769003433682,-151.0,0.00017537,2]
[402943222,1769003433691,-151.0,0.00017537,2]
[402943223,1769003433700,-151.0,0.00017537,2]
[402943224,1769003433709,-151.0,0.00017537,2]
[402943225,1769003433719,-151.0,0.00017537,2]
[402943226,1769003433733,-151.0,0.00017537,2]
[402943227,1769003433742,-151.0,0.00017537,2]
[402943228,1769003433751,-151.0,0.00017537,2]
[402943229,1769003434014,-151.0,0.00017537,2]
[402943230,1769003434024,-151.0,0.00017537,2]
[402943231,1769003434033,-151.0,0.00017537,2]
[402943232,1769003434043,-1518.84634261,0.00017537,2]
[402943233,1769003434053,-373.07297731,0.00017537,2]
[402943234,1769003434062,-2263.0,0.00017596,2]
[402943235,1769003434071,-835.95,0.00017597,2]
[402943236,1769003434080,-500.0,0.00017644,2]
[402943237,1769003434090,-329.69,0.00017688,2]
[402943238,1769003434100,-6021.51618934,0.00017714,2]
[402943239,1769003434109,-2347.99996871,0.00017733,2]
[402943240,1769003434118,-6021.51618934,0.00017735,2]
[402943241,1769003434127,-767.84,0.00017745,2]
[402943242,1769003434137,-210.53435129,0.00017745,2]
[402943243,1769003434146,-240.05478706,0.00017745,2]
[402943244,1769003434155,-500.0,0.00017745,2]
[402943245,1769003434164,-6021.51618934,0.00017755,2]
[402943246,1769003434174,-2347.99996866,0.00017757,2]
[402943247,1769003434183,-6021.51618934,0.00017776,2]
[402943248,1769003434192,-2347.99996866,0.00017781,2]
[402943249,1769003434201,-6021.51618934,0.00017797,2]
[402943250,1769003434210,-300.99589668,0.000178,2]
[402943251,1769003434219,-678.57262714,0.000178,2]
[402943252,1769003434228,-2347.99996866,0.00017805,2]
[402943253,1769003434237,-300.99589663,0.00017817,2]
[402943254,1769003434246,-6021.51618934,0.00017817,2]
[402943255,1769003434255,-2347.99996866,0.00017828,2]
[402943256,1769003434264,-85377.82099602,0.0001783,2]
[402943257,1769003434278,-4719.37229427,0.0001783,2]
[402943258,1769003434289,-36912.05991015,0.0001783,2]
[402943259,1769003434298,-300.99589663,0.00017833,2]
[402943260,1769003434307,-5187.4589151,0.00017838,2]
[402943261,1769003434436,-500.0,0.0001702,2]
[402943262,1769003434446,-500.0,0.0001702,2]
[402943263,1769003434454,-27.11678612,0.0001702,2]
[402943264,1769003434465,-472.88321388,0.0001702,2]
[402943265,1769003434474,-500.0,0.0001702,2]
[402943266,1769003434483,-500.0,0.0001702,2]
[402943267,1769003434492,-834.05727424,0.00017838,2]
[402943268,1769003434501,-300.99589663,0.0001785,2]
[402943269,1769003434510,-1145.13518186,0.00017852,2]
[402943270,1769003434521,-1202.8647868,0.00017852,2]
[402943271,1769003434531,-6021.51618934,0.00017859,2]
[402943272,1769003434540,-253.56045436,0.00017867,2]
[402943273,1769003434551,-47.43544227,0.00017867,2]
[402943274,1769003434559,-1440.51991773,0.00017876,2]
[402943275,1769003434576,-500.0,0.0001702,2]
[402943276,1769003434584,-907.48005093,0.00017876,2]
[402943277,1769003434593,-4471.91181907,0.00017879,2]
[402943278,1769003434606,-510.0,0.00017879,2]
[402943279,1769003434618,-1039.60437027,0.00017879,2]
[402943280,1769003434627,-300.99589663,0.00017883,2]
[402943281,1769003434636,-150.0041305,0.00017886,2]
[402943282,1769003434645,-159.3956026,0.00017889,2]
[402943285,1769003437799,-626.55788434,0.0001702,2]
[402943286,1769003437809,-500.0,0.0001702,2]
[402943287,1769003437818,-500.0,0.0001702,2]
[402943288,1769003437827,-500.0,0.0001702,2]
[402943289,1769003437836,-500.0,0.0001702,2]
[402943290,1769003437845,-500.0,0.0001702,2]
[402943291,1769003437855,-500.0,0.0001702,2]
[402943292,1769003437864,-500.0,0.0001702,2]
[402943293,1769003437873,-500.0,0.0001702,2]
[402943294,1769003437882,-500.0,0.0001702,2]
[402943295,1769003437892,-500.0,0.0001702,2]
[402943296,1769003437901,-500.0,0.0001702,2]
[402943297,1769003437910,-500.0,0.0001702,2]
[402943298,1769003437919,-500.0,0.0001702,2]
[402943299,1769003437928,-500.0,0.0001702,2]
[402943300,1769003437937,-500.0,0.0001702,2]
[402943301,1769003437946,-201.38444974,0.0001702,2]
[402943302,1769003437955,-500.0,0.0001702,2]
[402943303,1769003437964,-500.0,0.0001702,2]
[402943304,1769003437973,-500.0,0.0001702,2]
[402943306,1769003437982,-500.0,0.0001702,2]
[402943307,1769003437991,-500.0,0.0001702,2]
[402943309,1769003438000,-500.0,0.0001702,2]
[402943311,1769003438009,-707.94215069,0.0001789,2]
[402943312,1769003438018,-151.0,0.00017897,2]
[402943314,1769003438027,-150.0,0.00017899,2]
[402943315,1769003438036,-150.0,0.00017899,2]
[402943317,1769003438045,-150.0,0.00017899,2]
[402943319,1769003438055,-150.0,0.00017899,2]
[402943320,1769003438064,-150.0,0.00017899,2]
[402943322,1769003438073,-150.0,0.00017899,2]
[402943324,1769003438082,-153.63621303,0.00017899,2]
[402943325,1769003438091,-500.0,0.00017899,2]
[402943327,1769003438102,-500.0,0.00017899,2]
[402943328,1769003438112,-500.0,0.00017899,2]
[402943330,1769003438121,-507.08924967,0.00017899,2]
[402943332,1769003438132,-500.0,0.00017899,2]
[402943333,1769003438141,-500.0,0.00017899,2]
[402943335,1769003438151,-500.0,0.00017899,2]
[402943336,1769003438161,-500.0,0.00017899,2]
[402943338,1769003438171,-500.0,0.00017899,2]
[402943340,1769003438180,-500.0,0.00017899,2]
[402943341,1769003438190,-500.0,0.00017899,2]
[402943343,1769003438199,-500.0,0.00017899,2]
[402943345,1769003438208,-150.0,0.00017899,2]
[402943346,1769003438218,-512.44990602,0.00017899,2]
[402943348,1769003438227,-1000.0,0.000179,2]
[402943350,1769003438237,-6419.9340803,0.000179,3]
[402943351,1769003438246,-6722.40690163,0.000179,2]
[402943353,1769003438264,-165.16,0.0001789,2]
[402943355,1769003438273,-28107.36426398,0.000179,2]
[402943357,1769003438284,-707.01439376,0.000179,2]
[402943358,1769003438295,-964463.21444063,0.000179,2]
[402943360,1769003438304,-300.99589663,0.000179,2]
[402943362,1769003438313,-7644.42124384,0.000179,3]
[402943363,1769003438322,-15533.86143133,0.000179,2]
[402943365,1769003438331,-6021.51618934,0.000179,2]
[402943366,1769003438340,-741.7627,0.000179,2]
[402943368,1769003438350,-742.1000514,0.000179,2]
[402943370,1769003438359,-2347.99996866,0.000179,2]
[402943371,1769003438368,-4689.44998792,0.000179,2]
[402943373,1769003438377,-1000.0,0.0001797,2]
[402943375,1769003438386,-694.631145,0.0001797,2]
[402943376,1769003438396,-1321.57411122,0.0001797,2]
[402943378,1769003438405,-1000.0,0.0001797,2]
[402943379,1769003438414,-500.0,0.0001797,2]
[402943381,1769003438423,-15055.0,0.00017973,2]
[402943383,1769003438433,-30553.0,0.00017973,2]
[402943384,1769003438442,-500.0,0.00017973,2]
[402943386,1769003438451,-500.0,0.00017973,2]
[402943388,1769003438460,-500.0,0.00017973,2]
[402943390,1769003438469,-500.0,0.00017973,2]
[402943392,1769003438479,-500.0,0.00017973,2]
[402943394,1769003438488,-500.0,0.00017973,2]
[402943395,1769003438497,-500.0,0.00017973,2]
[402943396,1769003438506,-500.0,0.00017973,2]
[402943397,1769003438516,-500.53278225,0.00017973,2]
[402943398,1769003438524,-500.0,0.00017973,2]
[402943399,1769003438533,-500.58756359,0.00017973,2]
[402943400,1769003438543,-166.57282596,0.00017973,2]
[402943401,1769003438552,-500.47917453,0.00017973,2]
[402943402,1769003438561,-500.44081703,0.00017973,2]
[402943403,1769003438570,-501.05525398,0.00017973,2]
[402943404,1769003438579,-500.36019469,0.00017973,2]
[402943405,1769003438588,-500.0,0.00017973,2]
[402943406,1769003438597,-501.80045259,0.00017973,2]
[402943407,1769003438606,-500.0,0.00017973,2]
[402943408,1769003438615,-500.0,0.00017973,2]
[402943409,1769003438625,-163.65383635,0.00017973,2]
[402943410,1769003438634,-500.0,0.00017973,2]
[402943411,1769003438643,-500.0,0.00017973,2]
[402943412,1769003438651,-502.57997666,0.00017973,2]
[402943413,1769003438662,-500.0,0.00017973,2]
[402943414,1769003438670,-500.67790697,0.00017973,2]
[402943415,1769003438679,-500.0,0.00017973,2]
[402943416,1769003438688,-150.0,0.00017973,2]
[402943417,1769003438696,-150.0,0.00017973,2]
[402943418,1769003438705,-707.94215069,0.0001799,2]
[402943419,1769003438715,-707.94215069,0.0001799,2]
[402943420,1769003438725,-742.10005139,0.00017994,2]
[402943421,1769003438740,-151.0,0.00017997,2]
[402943422,1769003438749,-1037.30788483,0.00017999,5]
[402943424,1769003438759,-1037.30788483,0.00017999,5]
[402943425,1769003438769,-1037.30788483,0.00017999,5]
[402943426,1769003438778,-1061.69615016,0.00017999,5]
[402943427,1769003438787,-1061.69615017,0.00017999,5]
[402943428,1769003438796,-500.0,0.00017999,2]
[402943430,1769003438807,-500.0,0.00017999,2]
[402943431,1769003438816,-500.0,0.00017999,2]
[402943432,1769003438825,-500.0,0.00017999,2]
[402943433,1769003438834,-167.52941689,0.00017999,2]
[402943434,1769003438843,-500.0,0.00017999,2]
[402943435,1769003438853,-551.14745199,0.00017999,2]
[402943436,1769003438863,-500.0,0.00017999,2]
[402943437,1769003438872,-521.74793843,0.00017999,2]
[402943438,1769003438882,-300.0,0.00017999,2]
[402943439,1769003438891,-155.0,0.00017999,2]
[402943440,1769003438901,-300.0,0.00017999,2]
[402943441,1769003438910,-300.0,0.00017999,2]
[402943442,1769003438919,-385.23770556,0.00017999,2]
[402943443,1769003438930,-188.5502169,0.00017999,2]
[402943444,1769003438940,-500.0,0.00017999,2]
[402943445,1769003438949,-595.71619384,0.00017999,2]
[402943446,1769003438960,-500.0,0.00017999,2]
[402943447,1769003438969,-500.0,0.00017999,2]
[402943448,1769003438979,-208.46022007,0.00018,2]
[402943449,1769003438988,-1751436.52848825,0.00018,2]
[402943450,1769003439963,-1023.78057505,0.00018,2]
[402943451,1769003439974,-366.77809616,0.00018,2]
[402943452,1769003439999,-19149.37087493,0.00018,2]
[402943457,1769003440286,-259.7270366,0.00018,2]
[402943458,1769003440297,-2666.39463978,0.00018,2]
[402943472,1769003442914,-1613.6,0.00018,2]
[402943473,1769003442970,-1200.0,0.00018,2]
[402943474,1769003443048,-289.16,0.00018,2]
[402943477,1769003445698,-22633.40453914,0.00018,2]
[402943478,1769003445710,-871.26956706,0.00018,2]
[402943479,1769003445984,-862.39790705,0.000179,2]
[402943480,1769003445994,-1106.42332355,0.00018,2]
[402943481,1769003446005,-3359.99999999,0.00018,2]
[402943484,1769003468166,10000.01,7.945e-05,2]
[402943485,1769003468191,906.41183,7.945e-05,2]
[402943488,1769003703733,164.968212,0.00016,2]
[402943489,1769003730129,-158.23,0.00016636,2]
[402943490,1769003730151,-1700.887,0.00016857,2]
[402943491,1769003730171,-190.987,0.00016857,2]
[402943492,1769003730193,-161.26909804,0.00016927,2]
[402943493,1769003735756,1978.571021,0.00016553,2]
[402943494,1769003782240,810.05588096,0.00016638,2]
[402943495,1769003840466,830.22,0.00016309,2]
[402943496,1769003840668,830.22,0.00016352,2]
[402943497,1769003840856,830.22,0.00016395,2]
[402943498,1769003842717,-264.68883059,0.00016438,2]
[402943499,1769003845790,-176.1061532,0.00016438,2]
[402943500,1769003878684,7509.35,0.00016045,2]
[402943501,1769003878705,10000.01,0.00016045,2]
[402943502,1769003878728,10000.01,0.00016045,2]
[402943503,1769003878751,3025.73,0.00016045,2]
[402943504,1769003882948,-154.04044272,0.00016438,2]
[402943505,1769003886275,864.07,0.00016068,2]
[402943506,1769003916323,3422.03,0.00016069,2]
[402943507,1769003948391,229.48825,7.945e-05,2]
[402943508,1769004000255,1000.0,0.00016029,2]
[402943509,1769004006394,500.0,0.000226,120]
[402943510,1769004008063,500.0,0.000226,120]
[402943511,1769004009765,500.0,0.000226,120]
[402943512,1769004010392,-235.38457349,0.00016438,2]
[402943513,1769004010423,-830.22,0.00016481,2]
[402943514,1769004010452,-830.22,0.00016524,2]
[402943515,1769004010482,-830.22,0.00016567,2]
[402943516,1769004010512,-2075.20085302,0.00016588,2]
[402943517,1769004010986,500.0,0.000226,120]
[402943518,1769004012290,500.0,0.000226,120]
[402943519,1769004013334,-397.51914698,0.00016588,2]
[402943520,1769004013366,-150.03755959,0.00016599,2]
[402943521,1769004013398,-830.22,0.00016609,2]
[402943522,1769004013428,-300.0,0.00016612,2]
[402943523,1769004013459,-300.0,0.00016637,2]
[402943524,1769004013489,-1200.0,0.00016637,2]
[402943525,1769004013738,500.0,0.000226,120]
[402943526,1769004014855,500.0,0.000226,120]
[402943527,1769004016527,-2032.33588096,0.00016638,2]
[402943528,1769004016663,500.0,0.000226,120]
[402943529,1769004018282,500.0,0.000226,120]
[402943530,1769004019238,500.0,0.000226,120]
[402943531,1769004019458,-4064.67176192,0.00016638,2]
[402943532,1769004020844,500.0,0.000226,120]
[402943533,1769004022156,500.0,0.000226,120]
[402943534,1769004025723,493.42852552,0.000226,120]
[402943535,1769004025824,-1870.66647616,0.00016638,2]
[402943536,1769004033225,500.0,0.00016338,2]
[402943537,1769004144995,530.09339001,0.000176,30]
[402943538,1769004146946,700.0,0.000176,30]
[402943539,1769004148821,500.0,0.000176,30]
[402943540,1769004149227,500.0,0.000176,30]
[402943541,1769004149601,500.0,0.00014899,2]
[402943542,1769004149998,762.71508512,0.00014899,2]
[402943543,1769004152255,942.67330233,0.000176,30]
[402943544,1769004172830,175.17782274,0.00016652,2]
[402943545,1769004250328,258.93112329,0.00016356,2]
[402943546,1769004252121,466.07602193,0.00016356,2]
[402943547,1769004350978,499.86941174,0.00016378,6]
[402943549,1769004459150,151.0,0.00016652,2]
[402943558,1769004549526,340.83865321,0.00016378,2]
[402943572,1769004633013,-439.31811681,0.00016652,2]
[402943573,1769004633025,-390.90188319,0.00016652,2]
[402943574,1769004633036,-250.0,0.00016672,2]
[402943575,1769004633046,-415.25670748,0.00016691,2]
[402943576,1769004633056,-282.38,0.00016691,2]
[402943577,1769004633066,-733.81854401,0.00016695,2]
[402943578,1769004633082,-96.40145599,0.00016695,2]
[402943579,1769004633091,-175.17782274,0.00016695,2]
[402943580,1769004633101,-474.29625089,0.00016738,2]
[402943582,1769004638129,-355.92374911,0.00016738,2]
[402943583,1769004638139,-175.17782274,0.00016781,2]
[402943584,1769004638149,-830.22,0.00016781,2]
[402943585,1769004638162,-830.22,0.00016824,2]
[402943586,1769004638171,-830.22,0.00016867,2]
[402943587,1769004638182,-830.22,0.0001691,2]
[402943588,1769004638192,-1711.69386832,0.00016914,2]
[402943589,1769004638203,-407.48154511,0.00016914,2]
[402943590,1769004638213,-1200.0,0.00016938,2]
[402943591,1769004638223,-105.56010099,0.00016938,2]
[402943592,1769004638775,-194.43989901,0.00016938,2]
[402943593,1769004638786,-510.5966354,0.00016939,2]
[402943594,1769004638795,-2227.00056012,0.00016939,2]
[402943595,1769004638815,-14361.52595607,0.00016939,2]
[402943596,1769004638825,-830.22,0.00016953,2]
[402943597,1769004638835,-799.99,0.00016989,2]
[402943598,1769004638844,-799.99,0.00016989,2]
[402943599,1769004638854,-830.22,0.00016996,2]
[402943600,1769004638868,-151.0,0.00016996,2]
[402943601,1769004638878,-151.0,0.00016996,2]
[402943602,1769004638888,-550.0,0.00016997,2]
[402943603,1769004638898,-150.0,0.00016998,2]
[402943604,1769004638909,-500.0,0.00016998,2]
[402943606,1769004638920,-500.0,0.00016998,2]
[402943607,1769004638930,-500.0,0.00016998,2]
[402943609,1769004638940,-500.0,0.00016998,2]
[402943611,1769004638951,-500.0,0.00016998,2]
[402943612,1769004638961,-487.55611384,0.00016998,2]
[402943613,1769004638971,-500.0,0.00016998,2]
[402943615,1769004638980,-500.0,0.00016998,2]
[402943617,1769004638990,-500.0,0.00016998,2]
[402943619,1769004639000,-500.0,0.00016998,2]
[402943621,1769004639010,-500.0,0.00016998,2]
[402943623,1769004639020,-500.0,0.00016998,2]
[402943625,1769004639031,-500.0,0.00016998,2]
[402943627,1769004639041,-500.0,0.00016998,2]
[402943629,1769004639052,-500.0,0.00016998,2]
[402943631,1769004639062,-500.0,0.00016998,2]
[402943633,1769004639073,-500.0,0.00016998,2]
[402943635,1769004639084,-500.0,0.00016998,2]
[402943637,1769004639094,-500.0,0.00016998,2]
[402943639,1769004639107,-500.0,0.00016998,2]
[402943641,1769004639119,-500.0,0.00016998,2]
[402943643,1769004639129,-500.0,0.00016998,2]
[402943645,1769004639139,-500.0,0.00016998,2]
[402943647,1769004639150,-500.0,0.00016998,2]
[402943648,1769004639159,-500.0,0.00016998,2]
[402943649,1769004639169,-536.7577775,0.00016998,2]
[402943650,1769004639178,-500.0,0.00016998,2]
[402943651,1769004639187,-500.0,0.00016998,2]
[402943652,1769004639196,-500.0,0.00016998,2]
[402943653,1769004639206,-500.0,0.00016998,2]
[402943654,1769004639215,-500.0,0.00016998,2]
[402943655,1769004639224,-500.0,0.00016998,2]
[402943656,1769004639234,-500.0,0.00016998,2]
[402943657,1769004639243,-500.0,0.00016998,2]
[402943658,1769004639253,-500.0,0.00016998,2]
[402943659,1769004639262,-500.0,0.00016998,2]
[402943660,1769004639271,-500.0,0.00016998,2]
[402943661,1769004639280,-500.0,0.00016998,2]
[402943662,1769004639290,-500.0,0.00016998,2]
[402943663,1769004639300,-500.0,0.00016998,2]
[402943664,1769004639309,-500.0,0.00016998,2]
[402943665,1769004639318,-500.0,0.00016998,2]
[402943667,1769004639328,-500.0,0.00016998,2]
[402943668,1769004639338,-500.0,0.00016998,2]
[402943669,1769004639349,-500.0,0.00016998,2]
[402943671,1769004639364,-500.0,0.00016998,2]
[402943673,1769004639373,-500.0,0.00016998,2]
[402943675,1769004639383,-500.0,0.00016998,2]
[402943677,1769004639393,-500.0,0.00016998,2]
[402943679,1769004639411,-500.0,0.00016998,2]
[402943680,1769004639421,-500.0,0.00016998,2]
[402943682,1769004639431,-500.0,0.00016998,2]
[402943684,1769004639440,-500.0,0.00016998,2]
[402943687,1769004639450,-500.0,0.00016998,2]
[402943688,1769004639459,-500.0,0.00016998,2]
[402943691,1769004639468,-500.0,0.00016998,2]
[402943692,1769004639477,-500.0,0.00016998,2]
[402943694,1769004639487,-203.67577775,0.00016998,2]
[402943697,1769004639496,-500.0,0.00016998,2]
[402943698,1769004639505,-500.0,0.00016998,2]
[402943700,1769004639514,-500.0,0.00016998,2]
[402943703,1769004639524,-500.0,0.00016998,2]
[402943705,1769004639533,-500.0,0.00016998,2]
[402943706,1769004639543,-500.0,0.00016998,2]
[402943709,1769004639553,-500.0,0.00016998,2]
[402943710,1769004639562,-500.0,0.00016998,2]
[402943713,1769004639572,-500.0,0.00016998,2]
[402943715,1769004639582,-500.0,0.00016998,2]
[402943716,1769004639591,-500.0,0.00016998,2]
[402943718,1769004639601,-500.0,0.00016998,2]
[402943721,1769004639617,-550.0,0.00016998,2]
[402943723,1769004639626,-500.0,0.00016998,2]
[402943725,1769004639636,-500.0,0.00016998,2]
[402943728,1769004639645,-500.0,0.00016998,2]
[402943729,1769004639654,-500.0,0.00016998,2]
[402943731,1769004639663,-500.0,0.00016998,2]
[402943734,1769004639672,-500.0,0.00016998,2]
[402943737,1769004639691,-1000000.0,0.00016999,2]
[402943739,1769004639702,-1134.0,0.00017014,2]
[402943741,1769004639712,-1711.69386829,0.00017024,2]
[402943743,1769004639721,-830.22,0.00017039,2]
[402943745,1769004639731,-1668.0,0.00017039,2]
[402943747,1769004639740,-16588.52651614,0.00017046,2]
[402943749,1769004639749,-1397.0,0.00017048,2]
[402943751,1769004639760,-1016.0,0.00017054,2]
[402943753,1769004639769,-743.0,0.00017057,2]
[402943755,1769004639779,-194.72792766,0.00017057,2]
[402943757,1769004639788,-578.20924308,0.00017057,2]
[402943758,1769004639798,-322.6107,0.00017057,2]
[402943759,1769004639807,-174.61919141,0.00017057,2]
[402943760,1769004639817,-2605.0,0.00017076,2]
[402943761,1769004639826,-510.59663536,0.00017076,2]
[402943762,1769004639836,-830.22,0.00017082,2]
[402943763,1769004639845,-621.0,0.00017088,2]
[402943764,1769004639854,-6715.4939,0.000171,2]
[402943765,1769004639869,-199.03197587,0.00017111,2]
[402943766,1769004639878,-830.22,0.00017125,2]
[402943767,1769004639887,-1711.69386829,0.00017133,2]
[402943768,1769004639897,-16588.52651614,0.00017153,2]
[402943769,1769004639906,-500.36019469,0.00017173,2]
[402943770,1769004639916,-500.0,0.00017173,2]
[402943771,1769004639926,-500.0,0.00017173,2]
[402943772,1769004639935,-500.0,0.00017173,2]
[402943773,1769004639944,-166.57282596,0.00017173,2]
[402943774,1769004639954,-500.47917453,0.00017173,2]
[402943775,1769004639963,-500.58756359,0.00017173,2]
[402943776,1769004639973,-500.0,0.00017173,2]
[402943777,1769004639982,-501.05525398,0.00017173,2]
[402943778,1769004639991,-500.44081703,0.00017173,2]
[402943779,1769004640001,-500.0,0.00017173,2]
[402943780,1769004640010,-501.80045259,0.00017173,2]
[402943781,1769004640019,-163.65383635,0.00017173,2]
[402943782,1769004640029,-500.0,0.00017173,2]
[402943783,1769004640039,-500.53278225,0.00017173,2]
[402943784,1769004640052,-500.0,0.00017173,2]
[402943785,1769004640062,-500.0,0.00017173,2]
[402943786,1769004640072,-500.50663341,0.00017173,2]
[402943787,1769004640083,-500.67790697,0.00017173,2]
[402943788,1769004640093,-502.57997666,0.00017173,2]
[402943789,1769004640102,-500.0,0.00017173,2]
[402943790,1769004640115,-500.0,0.00017173,2]
[402943791,1769004640124,-151.0,0.0001718,2]
[402943792,1769004640134,-500.0,0.0001718,2]
[402943793,1769004640143,-250.05741751,0.0001718,2]
[402943794,1769004640153,-151.0,0.0001718,2]
[402943795,1769004640164,-533.88981491,0.0001718,2]
[402943796,1769004640173,-500.0,0.0001718,2]
[402943797,1769004640183,-1000.0,0.0001718,2]
[402943798,1769004640193,-500.0,0.0001718,2]
[402943799,1769004640203,-151.0,0.0001718,2]
[402943800,1769004640212,-500.0,0.0001718,2]
[402943801,1769004640222,-1000.0,0.0001718,2]
[402943802,1769004640232,-500.0,0.0001718,2]
[402943803,1769004640242,-151.0,0.0001718,2]
[402943804,1769004640255,-500.0,0.0001718,2]
[402943805,1769004640265,-1000.0,0.0001718,2]
[402943806,1769004640275,-500.0,0.0001718,2]
[402943807,1769004640285,-151.0,0.0001718,2]
[402943808,1769004640295,-500.0,0.0001718,2]